bitfinex/quotes_ETHUSD_20251006
["timestamp","ask_amount","ask_price","bid_price","bid_amount"]
[1759725211718,16.54549616,4533.1,4533.0,0.4342]
[1759725211919,16.54549616,4533.1,4533.0,0.001]
[1759725212432,14.09472681,4533.1,4533.0,0.001]
[1759725212814,16.69912681,4533.1,4533.0,0.001]
[1759725213145,16.69912681,4533.1,4533.0,0.4445]
[1759725213380,16.69912681,4533.1,4532.6,0.001]
[1759725213558,5.15779057,4532.7,4532.6,0.001]
[1759725213853,8.44082968,4532.7,4532.6,0.001]
[1759725214040,5.94682968,4532.7,4532.6,0.001]
[1759725214233,8.52912103,4532.7,4532.6,0.001]
[1759725215027,6.03512103,4532.7,4532.6,0.001]
[1759725215228,10.91891336,4532.7,4532.6,0.001]
[1759725215431,10.91891336,4532.7,4532.6,0.262]
[1759725216427,12.14891336,4532.7,4532.6,0.262]
[1759725217051,14.54891336,4532.7,4532.6,0.262]
[1759725217456,14.54891336,4532.7,4532.6,0.001]
[1759725217853,15.77891336,4532.7,4532.6,0.001]
[1759725218345,16.96710532,4532.7,4532.6,0.001]
[1759725219243,18.19710532,4532.7,4532.6,0.001]
[1759725219839,17.72344339,4532.7,4532.6,0.001]
[1759725220035,17.01131472,4532.7,4532.6,0.001]
[1759725220236,16.80634847,4532.7,4532.6,0.001]
[1759725220453,17.0129784,4532.7,4532.6,0.001]
[1759725220763,16.93717036,4532.7,4532.6,0.001]
[1759725220940,18.95609614,4532.7,4532.6,0.001]
[1759725221136,16.46109614,4532.7,4532.6,0.001]
[1759725221341,18.95509614,4532.7,4532.6,0.001]
[1759725221559,17.76690418,4532.7,4532.6,0.001]
[1759725222061,18.99690418,4532.7,4532.6,0.001]
[1759725222258,19.47300455,4532.7,4532.6,0.001]
[1759725222661,19.92670455,4532.7,4532.6,0.001]
[1759725222861,19.47300455,4532.7,4532.6,0.001]
[1759725223264,20.70300455,4532.7,4532.6,0.001]
[1759725224363,5.15783924,4532.6,4532.5,0.001]
[1759725224552,8.80256697,4532.6,4532.5,0.001]
[1759725225029,9.06356697,4532.6,4532.5,0.001]
[1759725225959,10.29356697,4532.6,4532.5,0.001]
[1759725227244,9.50006135,4532.6,4532.5,0.001]
[1759725227443,10.73006135,4532.6,4532.5,0.001]
[1759725228827,11.96006135,4532.6,4532.5,0.001]
[1759725229048,11.9600854,4532.6,4532.5,0.001]
[1759725230132,13.1900854,4532.6,4532.5,0.001]
[1759725231658,14.4200854,4532.6,4532.5,0.001]
[1759725232951,15.6500854,4532.6,4532.5,0.001]
[1759725233566,18.1430854,4532.6,4532.5,0.001]
[1759725233773,15.6500854,4532.6,4532.5,0.001]
[1759725234079,15.46112851,4532.6,4532.5,0.262]
[1759725234249,18.5888854,4532.6,4532.5,0.262]
[1759725235573,18.5888854,4532.6,4532.5,0.001]
[1759725235574,19.2224854,4532.6,4532.5,0.001]
[1759725235777,21.50142851,4532.6,4532.5,0.001]
[1759725235954,20.9061854,4532.6,4532.5,0.001]
[1759725237164,22.1361854,4532.6,4532.5,0.001]
[1759725237875,2.20643396,4532.2,4532.1,0.001]
[1759725238080,8.41134329,4532.2,4532.1,0.001]
[1759725238280,8.88746771,4532.2,4532.1,0.001]
[1759725238483,10.11746771,4532.2,4532.1,0.001]
[1759725238685,10.20576276,4532.2,4532.1,0.001]
[1759725239770,11.43576276,4532.2,4532.1,0.001]
[1759725239971,8.94076276,4532.2,4532.1,0.001]
[1759725240287,11.34746771,4532.2,4532.1,0.001]
[1759725240481,11.34749444,4532.2,4532.1,0.001]
[1759725240986,11.78913421,4532.2,4532.1,0.001]
[1759725241182,11.78913421,4532.2,4531.5,0.001]
[1759725241183,4.5246774,4531.7,4531.5,0.001]
[1759725241353,8.37558658,4531.7,4531.5,0.001]
[1759725241553,8.48598658,4531.7,4531.5,0.001]
[1759725241884,8.48598658,4531.7,4531.6,0.262]
[1759725242083,6.27930918,4531.7,4531.6,0.262]
[1759725242386,8.48598658,4531.7,4531.6,0.262]
[1759725242565,9.71598658,4531.7,4531.6,0.262]
[1759725243886,7.22098658,4531.7,4531.6,0.262]
[1759725244187,10.94598658,4531.7,4531.6,0.262]
[1759725244378,10.94598658,4531.7,4531.6,0.001]
[1759725244688,10.94598658,4531.7,4531.6,0.262]
[1759725244856,8.73930918,4531.7,4531.6,0.262]
[1759725245057,10.94598658,4531.7,4531.6,0.262]
[1759725245457,12.17598658,4531.7,4531.6,0.262]
[1759725246689,12.17498658,4531.7,4531.6,0.262]
[1759725246889,13.40498658,4531.7,4531.6,0.262]
[1759725247666,5.91018476,4531.7,4531.6,0.262]
[1759725248066,6.46705666,4531.7,4531.6,0.262]
[1759725248271,8.96105666,4531.7,4531.6,0.262]
[1759725248875,11.16773406,4531.7,4531.6,0.262]
[1759725249070,8.96105666,4531.7,4531.6,0.262]
[1759725249707,7.58665666,4531.7,4531.6,0.262]
[1759725249914,7.69705666,4531.7,4531.6,0.262]
[1759725250408,7.4904,4531.7,4531.6,0.262]
[1759725251102,8.7204,4531.7,4531.6,0.262]
[1759725252432,9.9504,4531.7,4531.6,0.262]
[1759725254210,11.1804,4531.7,4531.6,0.262]
[1759725255591,12.4104,4531.7,4531.6,0.262]
[1759725257209,13.6404,4531.7,4531.6,0.262]
[1759725258514,14.8704,4531.7,4531.6,0.262]
[1759725259799,16.1004,4531.7,4531.6,0.262]
[1759725261318,17.3304,4531.7,4531.6,0.262]
[1759725262617,18.5604,4531.7,4531.6,0.262]
[1759725262985,18.5604,4531.7,4531.6,2.662]
[1759725263332,13.25331179,4531.7,4531.6,2.662]
[1759725263683,13.25331179,4531.7,4531.6,16.901]
[1759725264122,13.14291179,4531.7,4531.6,0.001]
[1759725264291,14.37291179,4531.7,4531.6,0.001]
[1759725265319,15.81040297,4531.7,4531.6,0.001]
[1759725265519,17.04040297,4531.7,4531.6,0.001]
[1759725266109,15.60291179,4531.7,4531.6,0.001]
[1759725267314,16.83291179,4531.7,4531.6,0.001]
[1759725268921,18.06291179,4531.7,4531.6,0.001]
[1759725270120,19.29291179,4531.7,4531.6,0.001]
[1759725271707,20.52291179,4531.7,4531.6,0.001]
[1759725273094,21.75291179,4531.7,4531.6,0.001]
[1759725273495,22.18471179,4531.7,4531.6,0.001]
[1759725274119,22.29511179,4531.7,4531.6,0.001]
[1759725274520,23.52511179,4531.7,4531.6,0.001]
[1759725275207,23.09331179,4531.7,4531.6,0.001]
[1759725276030,24.32331179,4531.7,4531.6,0.001]
[1759725277034,24.52965499,4531.7,4531.6,0.001]
[1759725277443,25.75965499,4531.7,4531.6,0.001]
[1759725277617,26.19145499,4531.7,4531.6,0.001]
[1759725278446,27.1519551,4531.7,4531.6,0.001]
[1759725278829,28.3819551,4531.7,4531.6,0.001]
[1759725279022,27.42145499,4531.7,4531.6,0.001]
[1759725279828,26.98965499,4531.7,4531.6,0.001]
[1759725280145,28.21965499,4531.7,4531.6,0.001]
[1759725281846,29.44965499,4531.7,4531.6,0.001]
[1759725283215,30.67965499,4531.7,4531.6,0.001]
[1759725284845,31.11145499,4531.7,4531.6,0.001]
[1759725285047,32.34145499,4531.7,4531.6,0.001]
[1759725285252,31.90965499,4531.7,4531.6,0.001]
[1759725286654,33.13965499,4531.7,4531.6,0.001]
[1759725287941,34.36965499,4531.7,4531.6,0.001]
[1759725288252,34.80145499,4531.7,4531.6,0.001]
[1759725288850,34.36965499,4531.7,4531.6,0.001]
[1759725289354,35.59965499,4531.7,4531.6,0.262]
[1759725289718,35.59965499,4531.7,4531.6,0.001]
[1759725289924,35.59965499,4531.7,4531.6,0.262]
[1759725290353,35.59996646,4531.7,4531.6,0.262]
[1759725290850,35.59996646,4531.7,4531.6,0.001]
[1759725290851,37.26176646,4531.7,4531.6,0.001]
[1759725291053,39.43025827,4531.7,4531.6,0.001]
[1759725291419,36.82996646,4531.7,4531.6,0.001]
[1759725291621,36.82996646,4531.7,4531.6,23.14506236]
[1759725291622,32.27159563,4531.7,4531.6,23.14506236]
[1759725291842,32.27159563,4531.7,4531.6,21.90843245]
[1759725292045,33.50159563,4531.7,4531.6,36.40843245]
[1759725292578,33.50159563,4531.7,4531.6,51.70428355]
[1759725292777,30.54206553,4531.7,4531.6,51.70428355]
[1759725292977,29.52127947,4531.7,4531.6,51.70428355]
[1759725293357,30.75127947,4531.7,4531.6,51.70428355]
[1759725293572,30.75127947,4531.7,4531.6,54.20428355]
[1759725293774,30.58578278,4531.7,4531.6,54.20428355]
[1759725294282,30.58778278,4531.7,4531.6,54.20428355]
[1759725294485,30.58778278,4531.7,4531.6,51.99755745]
[1759725294684,31.81778278,4531.7,4531.6,51.99755745]
[1759725294856,31.81778278,4531.7,4531.6,50.93859845]
[1759725295382,31.81778278,4531.7,4531.6,52.51863051]
[1759725295581,31.81778278,4531.7,4531.6,25.78431561]
[1759725295876,31.81778278,4531.7,4531.6,53.57758951]
[1759725296049,33.04778278,4531.7,4531.6,53.57758951]
[1759725296455,33.04778278,4531.7,4531.6,55.78431561]
[1759725296756,33.04778278,4531.7,4531.6,53.57758951]
[1759725297387,33.04778278,4531.7,4531.6,51.99755745]
[1759725297589,34.27778278,4531.7,4531.6,54.20428355]
[1759725298066,34.27778278,4531.7,4531.6,51.46017045]
[1759725298784,34.27778278,4531.7,4531.6,51.85232045]
[1759725298983,35.50778278,4531.7,4531.6,54.05904655]
[1759725299765,35.50778278,4531.7,4531.6,54.20428355]
[1759725300494,36.73778278,4531.7,4531.6,51.99755745]
[1759725301461,36.73778278,4531.7,4531.6,54.20428355]
[1759725301666,36.73778278,4531.7,4531.6,51.99755745]
[1759725301893,37.96778278,4531.7,4531.6,51.99755745]
[1759725302287,37.96778278,4531.7,4531.6,54.20428355]
[1759725303392,39.19778278,4531.7,4531.6,54.20428355]
[1759725303615,39.19778278,4531.7,4531.6,51.99755745]
[1759725303923,39.19778278,4531.7,4531.6,51.73655745]
[1759725304105,39.19778278,4531.7,4531.6,28.82552266]
[1759725304286,39.73618278,4531.7,4531.6,28.92352266]
[1759725304732,40.96618278,4531.7,4531.6,6.32803666]
[1759725304949,42.32484888,4531.7,4531.6,8.31103666]
[1759725305224,40.96618278,4531.7,4531.6,8.31103666]
[1759725305430,40.96618278,4531.7,4531.6,5.56091266]
[1759725305611,40.96618278,4531.7,4531.6,2.499]
[1759725306103,42.19618278,4531.7,4531.6,2.499]
[1759725307586,43.42618278,4531.7,4531.6,2.499]
[1759725308708,45.59467459,4531.7,4531.6,4.899]
[1759725308909,46.82467459,4531.7,4531.6,4.899]
[1759725309111,46.82467459,4531.7,4531.6,2.5]
[1759725309312,46.82467459,4531.7,4531.6,0.001]
[1759725310433,48.05467459,4531.7,4531.6,0.001]
[1759725311645,49.28467459,4531.7,4531.6,0.001]
[1759725313430,50.51467459,4531.7,4531.6,0.001]
[1759725314547,55.21935199,4531.7,4531.6,0.001]
[1759725314848,54.24267459,4531.7,4531.6,0.001]
[1759725315849,56.44935199,4531.7,4531.6,0.001]
[1759725316046,57.67935199,4531.7,4531.6,0.001]
[1759725316240,55.47267459,4531.7,4531.6,0.001]
[1759725316954,57.67935199,4531.7,4531.6,0.001]
[1759725317554,56.70267459,4531.7,4531.6,0.001]
[1759725318524,58.90935199,4531.7,4531.6,0.001]
[1759725318726,56.70267459,4531.7,4531.6,0.001]
[1759725318927,57.93267459,4531.7,4531.6,0.001]
[1759725320340,59.16267459,4531.7,4531.6,0.001]
[1759725320957,61.36935199,4531.7,4531.6,0.001]
[1759725321134,59.16267459,4531.7,4531.6,0.001]
[1759725321459,56.66467459,4531.7,4531.6,0.001]
[1759725321638,57.46667459,4531.7,4531.6,0.001]
[1759725322155,55.29818278,4531.7,4531.6,0.001]
[1759725323150,55.72618278,4531.7,4531.6,0.001]
[1759725323332,56.95618278,4531.7,4531.6,0.001]
[1759725324666,58.18618278,4531.7,4531.6,0.001]
[1759725326937,59.41618278,4531.7,4531.6,0.001]
[1759725328263,65.14254076,4531.7,4531.6,0.001]
[1759725329749,66.37254076,4531.7,4531.6,0.001]
[1759725330465,63.87554076,4531.7,4531.6,0.001]
[1759725331063,66.08221816,4531.7,4531.6,0.001]
[1759725331241,67.31221816,4531.7,4531.6,0.001]
[1759725332270,69.80821816,4531.7,4531.6,0.001]
[1759725332650,71.03821816,4531.7,4531.6,0.001]
[1759725332852,71.24444981,4531.7,4531.6,0.001]
[1759725333057,69.03777241,4531.7,4531.6,0.001]
[1759725333257,69.03790791,4531.7,4531.6,0.001]
[1759725334070,70.26790791,4531.7,4531.6,0.001]
[1759725335190,72.47458531,4531.7,4531.6,0.001]
[1759725335389,73.70458531,4531.7,4531.6,0.001]
[1759725335773,71.49790791,4531.7,4531.6,0.001]
[1759725336585,69.07054993,4531.7,4531.6,0.001]
[1759725336892,72.97592733,4531.7,4531.6,0.001]
[1759725338065,74.20592733,4531.7,4531.6,0.001]
[1759725339511,75.43592733,4531.7,4531.6,0.001]
[1759725341135,76.66592733,4531.7,4531.6,0.001]
[1759725341437,76.33841914,4531.7,4531.6,0.001]
[1759725341631,78.83341914,4531.7,4531.6,0.001]
[1759725342542,80.06341914,4531.7,4531.6,0.001]
[1759725343834,77.56841914,4531.7,4531.6,0.001]
[1759725344039,81.29341914,4531.7,4531.6,0.001]
[1759725345542,82.52341914,4531.7,4531.6,0.001]
[1759725346444,75.18454993,4531.7,4531.6,0.001]
[1759725346942,76.41454993,4531.7,4531.6,0.001]
[1759725348340,77.64454993,4531.7,4531.6,0.001]
[1759725349161,77.43818278,4531.7,4531.6,0.001]
[1759725349636,78.66818278,4531.7,4531.6,0.001]
[1759725351059,79.89818278,4531.7,4531.6,0.001]
[1759725351350,79.89818278,4531.7,4531.6,14.501]
[1759725352659,80.10460077,4531.7,4531.6,0.001]
[1759725352829,81.33460077,4531.7,4531.6,0.001]
[1759725354229,82.56460077,4531.7,4531.6,0.001]
[1759725356260,83.79460077,4531.7,4531.6,0.001]
[1759725357055,83.79458422,4531.7,4531.6,0.001]
[1759725357957,85.49328422,4531.7,4531.6,0.001]
[1759725358170,92.36445343,4531.7,4531.6,0.001]
[1759725359480,93.59445343,4531.7,4531.6,0.001]
[1759725359656,93.59545343,4531.7,4531.6,0.001]
[1759725360558,91.09845343,4531.7,4531.6,0.001]
[1759725360752,94.82545343,4531.7,4531.6,0.001]
[1759725362033,96.05545343,4531.7,4531.6,0.001]
[1759725362261,96.05445343,4531.7,4531.6,0.001]
[1759725362734,93.55845343,4531.7,4531.6,0.001]
[1759725362975,96.05445343,4531.7,4531.6,0.001]
[1759725363482,92.58177603,4531.7,4531.6,0.001]
[1759725363646,97.27455343,4531.7,4531.6,0.001]
[1759725364948,98.50455343,4531.7,4531.6,0.001]
[1759725366355,99.73455343,4531.7,4531.6,0.001]
[1759725367643,100.96455343,4531.7,4531.6,0.001]
[1759725368453,98.00975343,4531.7,4531.6,0.001]
[1759725368657,100.50675343,4531.7,4531.6,0.001]
[1759725368869,100.96455343,4531.7,4531.6,0.001]
[1759725369077,102.19455343,4531.7,4531.6,0.001]
[1759725369575,101.73675343,4531.7,4531.6,0.001]
[1759725370049,102.19455343,4531.7,4531.6,0.001]
[1759725370683,103.42455343,4531.7,4531.6,0.001]
[1759725371504,100.92755343,4531.7,4531.6,0.001]
[1759725371700,103.42455343,4531.7,4531.6,0.001]
[1759725371907,104.65455343,4531.7,4531.6,0.001]
[1759725372216,99.49307603,4531.7,4531.6,0.001]
[1759725372425,97.32458422,4531.7,4531.6,0.001]
[1759725372715,102.02826162,4531.7,4531.6,0.001]
[1759725372888,99.82158422,4531.7,4531.6,0.001]
[1759725373079,98.55458422,4531.7,4531.6,0.001]
[1759725374320,100.76126162,4531.7,4531.6,0.001]
[1759725374685,101.99126162,4531.7,4531.6,0.001]
[1759725375518,99.78458422,4531.7,4531.6,0.001]
[1759725376117,101.99126162,4531.7,4531.6,0.001]
[1759725376316,103.22126162,4531.7,4531.6,0.001]
[1759725376620,108.34455343,4531.7,4531.6,0.001]
[1759725377686,109.57455343,4531.7,4531.6,0.001]
[1759725378941,110.80455343,4531.7,4531.6,0.001]
[1759725380209,112.03455343,4531.7,4531.6,0.001]
[1759725381411,114.99015343,4531.7,4531.6,0.001]
[1759725381612,116.22015343,4531.7,4531.6,0.001]
[1759725383022,117.45015343,4531.7,4531.6,0.001]
[1759725383244,117.45009163,4531.7,4531.6,0.001]
[1759725384827,118.68009163,4531.7,4531.6,0.001]
[1759725386824,119.91009163,4531.7,4531.6,0.001]
[1759725387944,119.91016546,4531.7,4531.6,0.001]
[1759725388131,121.14016546,4531.7,4531.6,0.001]
[1759725389662,122.37016546,4531.7,4531.6,0.001]
[1759725390970,123.60016546,4531.7,4531.6,0.001]
[1759725392467,124.83016546,4531.7,4531.6,0.001]
[1759725393460,122.33316546,4531.7,4531.6,0.001]
[1759725393660,126.05916546,4531.7,4531.6,0.001]
[1759725394473,123.73716546,4531.7,4531.6,0.001]
[1759725394952,126.05916546,4531.7,4531.6,0.001]
[1759725395154,127.28916546,4531.7,4531.6,0.001]
[1759725395349,121.83756546,4531.7,4531.6,0.001]
[1759725395573,124.33356546,4531.7,4531.6,0.001]
[1759725397143,125.56356546,4531.7,4531.6,0.001]
[1759725398559,126.79356546,4531.7,4531.6,0.001]
[1759725400486,128.02356546,4531.7,4531.6,0.001]
[1759725401278,128.02268278,4531.7,4531.6,0.001]
[1759725402389,129.25268278,4531.7,4531.6,0.001]
[1759725403994,130.48268278,4531.7,4531.6,0.001]
[1759725405259,135.21772678,4531.7,4531.6,0.001]
[1759725405460,136.44772678,4531.7,4531.6,0.001]
[1759725407164,137.67772678,4531.7,4531.6,0.001]
[1759725408498,138.90772678,4531.7,4531.6,0.001]
[1759725410374,139.67992678,4531.7,4531.6,0.001]
[1759725410888,140.11652678,4531.7,4531.6,0.001]
[1759725411678,141.34652678,4531.7,4531.6,0.001]
[1759725413804,142.57652678,4531.7,4531.6,0.001]
[1759725415317,146.65172678,4531.7,4531.6,0.001]
[1759725415500,2.2069209,4531.2,4531.1,0.001]
[1759725415675,5.3487115,4531.2,4531.1,0.001]
[1759725415999,5.34908974,4531.2,4531.1,0.001]
[1759725416572,6.57908974,4531.2,4531.1,0.001]
[1759725418112,7.80908974,4531.2,4531.1,0.001]
[1759725419576,9.03908974,4531.2,4531.1,0.001]
[1759725420511,10.10928974,4531.2,4531.1,0.001]
[1759725420680,12.43128974,4531.2,4531.1,0.001]
[1759725421080,14.13742199,4531.2,4531.1,0.001]
[1759725421692,4.52896961,4531.1,4530.6,0.001]
[1759725421916,7.17378157,4531.1,4530.6,0.001]
[1759725422130,7.61038157,4531.1,4530.6,0.001]
[1759725422503,4.52921317,4530.6,4530.5,1e-08]
[1759725422727,7.23100488,4530.6,4530.5,1e-08]
[1759725422928,8.96434885,4530.6,4530.5,1e-08]
[1759725423137,12.78424366,4530.6,4530.5,1e-08]
[1759725423835,10.82794885,4530.6,4530.5,1e-08]
[1759725424341,8.33294885,4530.6,4530.5,1e-08]
[1759725424720,10.82794885,4530.6,4530.5,1e-08]
[1759725424934,7.22844885,4530.6,4530.5,1e-08]
[1759725425131,10.95344885,4530.6,4530.5,1e-08]
[1759725425308,11.06384885,4530.6,4530.5,1e-08]
[1759725425508,11.06484885,4530.6,4530.5,1e-08]
[1759725426542,12.29484885,4530.6,4530.5,1e-08]
[1759725426843,16.47524366,4530.6,4530.5,1e-08]
[1759725428041,17.70524366,4530.6,4530.5,1e-08]
[1759725428616,14.51894885,4530.6,4530.5,1e-08]
[1759725429252,13.25294885,4530.6,4530.5,1e-08]
[1759725429417,15.74994885,4530.6,4530.5,1e-08]
[1759725429619,13.25294885,4530.6,4530.5,1e-08]
[1759725429826,12.78204885,4530.6,4530.5,1e-08]
[1759725430026,14.64444885,4530.6,4530.5,1e-08]
[1759725430649,15.87444885,4530.6,4530.5,1e-08]
[1759725431247,16.34534885,4530.6,4530.5,1e-08]
[1759725431925,18.20894885,4530.6,4530.5,1e-08]
[1759725432344,18.29728563,4530.6,4530.5,1e-08]
[1759725432657,15.80128563,4530.6,4530.5,1e-08]
[1759725432837,18.29728563,4530.6,4530.5,1e-08]
[1759725433453,19.52728563,4530.6,4530.5,1e-08]
[1759725433816,17.03128563,4530.6,4530.5,1e-08]
[1759725434016,19.52828563,4530.6,4530.5,1e-08]
[1759725435057,20.75828563,4530.6,4530.5,1e-08]
[1759725435558,18.26128563,4530.6,4530.5,1e-08]
[1759725435851,20.75828563,4530.6,4530.5,1e-08]
[1759725436359,23.94458044,4530.6,4530.5,1e-08]
[1759725436555,25.17458044,4530.6,4530.5,1e-08]
[1759725436924,25.28498044,4530.6,4530.5,1e-08]
[1759725437445,22.78798044,4530.6,4530.5,1e-08]
[1759725437645,25.28398044,4530.6,4530.5,1e-08]
[1759725438054,26.51398044,4530.6,4530.5,1e-08]
[1759725438531,24.01798044,4530.6,4530.5,1e-08]
[1759725438729,26.51398044,4530.6,4530.5,1e-08]
[1759725439441,27.74398044,4530.6,4530.5,1e-08]
[1759725440931,28.97398044,4530.6,4530.5,1e-08]
[1759725441349,2.84105678,4530.1,4530.0,0.001]
[1759725441630,8.48109266,4530.1,4530.0,0.001]
[1759725442093,8.95116815,4530.1,4530.0,0.001]
[1759725442250,10.18116815,4530.1,4530.0,0.001]
[1759725442742,10.33709203,4530.1,4530.0,0.001]
[1759725443640,11.09619203,4530.1,4530.0,0.001]
[1759725444278,11.56709203,4530.1,4530.0,0.001]
[1759725445469,12.79809203,4530.1,4530.0,0.001]
[1759725445654,12.32719203,4530.1,4530.0,0.001]
[1759725446912,14.02809203,4530.1,4530.0,0.001]
[1759725447613,13.55719203,4530.1,4530.0,0.001]
[1759725448001,14.02809203,4530.1,4530.0,0.001]
[1759725448206,15.25809203,4530.1,4530.0,0.001]
[1759725449288,14.78719203,4530.1,4530.0,0.001]
[1759725449488,16.01719203,4530.1,4530.0,0.001]
[1759725449810,15.86126815,4530.1,4530.0,0.001]
[1759725449981,13.36426815,4530.1,4530.0,0.001]
[1759725450184,15.86126815,4530.1,4530.0,0.001]
[1759725450822,13.96066815,4530.1,4530.0,0.001]
[1759725451007,16.45766815,4530.1,4530.0,0.001]
[1759725451326,16.45832209,4530.1,4530.0,0.001]
[1759725452292,17.68832209,4530.1,4530.0,0.001]
[1759725453851,18.91832209,4530.1,4530.0,0.001]
[1759725455406,20.14832209,4530.1,4530.0,0.001]
[1759725455727,20.14732209,4530.1,4530.0,0.001]
[1759725456318,20.59592209,4530.1,4530.0,0.001]
[1759725456522,2.20770045,4529.6,4529.5,0.001]
[1759725456832,5.46225452,4529.6,4529.5,0.001]
[1759725458118,6.69225452,4529.6,4529.5,0.001]
[1759725459465,6.25072159,4529.6,4529.5,0.001]
[1759725459756,7.48072159,4529.6,4529.5,0.001]
[1759725460247,4.98472159,4529.6,4529.5,0.001]
[1759725460452,7.48072159,4529.6,4529.5,0.001]
[1759725460648,9.80272159,4529.6,4529.5,0.001]
[1759725460853,7.48072159,4529.6,4529.5,0.001]
[1759725461148,8.70972159,4529.6,4529.5,0.001]
[1759725462342,9.80145555,4529.6,4529.5,0.001]
[1759725462553,11.03145555,4529.6,4529.5,0.001]
[1759725463425,11.03245555,4529.6,4529.5,0.001]
[1759725463941,12.26245555,4529.6,4529.5,0.001]
[1759725464352,12.71105555,4529.6,4529.5,0.001]
[1759725464864,12.26245555,4529.6,4529.5,0.001]
[1759725465468,13.49245555,4529.6,4529.5,0.001]
[1759725467078,14.72245555,4529.6,4529.5,0.001]
[1759725468060,15.17105555,4529.6,4529.5,0.001]
[1759725468464,15.95245555,4529.6,4529.5,0.001]
[1759725470194,17.18245555,4529.6,4529.5,0.001]
[1759725471067,19.95305555,4529.6,4529.5,0.001]
[1759725471579,21.18305555,4529.6,4529.5,0.001]
[1759725472075,20.73445555,4529.6,4529.5,0.001]
[1759725472484,20.73345555,4529.6,4529.5,0.001]
[1759725473646,21.96345555,4529.6,4529.5,0.001]
[1759725473864,22.41205555,4529.6,4529.5,0.001]
[1759725474347,21.96345555,4529.6,4529.5,0.001]
[1759725474564,22.41205555,4529.6,4529.5,0.001]
[1759725475662,23.64205555,4529.6,4529.5,0.001]
[1759725476063,20.87145555,4529.6,4529.5,0.001]
[1759725476787,20.87045555,4529.6,4529.5,0.001]
[1759725476974,22.10045555,4529.6,4529.5,0.001]
[1759725477170,18.51472159,4529.6,4529.5,0.001]
[1759725477382,21.00872159,4529.6,4529.5,0.001]
[1759725478494,22.23872159,4529.6,4529.5,0.001]
[1759725479902,23.46872159,4529.6,4529.5,0.001]
[1759725481112,25.79072159,4529.6,4529.5,0.001]
[1759725481398,24.69872159,4529.6,4529.5,0.001]
[1759725481776,26.57860128,4529.6,4529.5,0.001]
[1759725482092,26.37198014,4529.6,4529.5,0.001]
[1759725482260,26.57878803,4529.6,4529.5,0.001]
[1759725482799,27.80878803,4529.6,4529.5,0.001]
[1759725484603,29.03878803,4529.6,4529.5,0.001]
[1759725485166,26.83108758,4529.6,4529.5,0.001]
[1759725485368,27.15890834,4529.6,4529.5,0.001]
[1759725486070,28.38890834,4529.6,4529.5,0.001]
[1759725486383,28.86360834,4529.6,4529.5,0.001]
[1759725486914,28.38888997,4529.6,4529.5,0.001]
[1759725487122,28.38788997,4529.6,4529.5,0.001]
[1759725487270,30.55638178,4529.6,4529.5,0.001]
[1759725487471,31.78638178,4529.6,4529.5,0.001]
[1759725488935,33.01638178,4529.6,4529.5,0.001]
[1759725489934,30.52338178,4529.6,4529.5,0.001]
[1759725490346,34.24638178,4529.6,4529.5,0.001]
[1759725491634,35.47638178,4529.6,4529.5,0.001]
[1759725493326,32.98338178,4529.6,4529.5,0.001]
[1759725493637,36.70638178,4529.6,4529.5,0.001]
[1759725494907,37.93638178,4529.6,4529.5,0.001]
[1759725496516,39.16638178,4529.6,4529.5,0.001]
[1759725496946,36.67338178,4529.6,4529.5,0.001]
[1759725497246,39.16638178,4529.6,4529.5,0.001]
[1759725497842,40.39638178,4529.6,4529.5,0.001]
[1759725499209,41.62638178,4529.6,4529.5,0.001]
[1759725500429,42.85638178,4529.6,4529.5,0.001]
[1759725500637,38.19488997,4529.6,4529.5,0.001]
[1759725500808,40.68788997,4529.6,4529.5,0.001]
[1759725501730,41.91788997,4529.6,4529.5,0.001]
[1759725502127,39.42488997,4529.6,4529.5,0.001]
[1759725502331,41.91788997,4529.6,4529.5,0.001]
[1759725502956,44.08638178,4529.6,4529.5,0.001]
[1759725503135,45.31638178,4529.6,4529.5,0.001]
[1759725504181,38.44718952,4529.6,4529.5,0.001]
[1759725504467,39.67718952,4529.6,4529.5,0.001]
[1759725506068,40.90718952,4529.6,4529.5,0.001]
[1759725507551,42.13718952,4529.6,4529.5,0.001]
[1759725507852,44.34488997,4529.6,4529.5,0.001]
[1759725508930,50.47651431,4529.6,4529.5,0.001]
[1759725510358,51.70651431,4529.6,4529.5,0.001]
[1759725511650,52.93651431,4529.6,4529.5,0.001]
[1759725513063,54.16651431,4529.6,4529.5,0.001]
[1759725514339,55.39651431,4529.6,4529.5,0.001]
[1759725514540,55.39624688,4529.6,4529.5,0.001]
[1759725516158,56.62624688,4529.6,4529.5,0.001]
[1759725517566,57.85624688,4529.6,4529.5,0.001]
[1759725519275,59.08624688,4529.6,4529.5,0.001]
[1759725520488,60.31624688,4529.6,4529.5,0.001]
[1759725522485,59.05324688,4529.6,4529.5,0.001]
[1759725522685,61.54624688,4529.6,4529.5,0.001]
[1759725523678,60.28324688,4529.6,4529.5,0.001]
[1759725523977,59.8084039,4529.6,4529.5,0.001]
[1759725524178,62.3014039,4529.6,4529.5,0.001]
[1759725524768,59.8084039,4529.6,4529.5,0.001]
[1759725524972,55.55637911,4529.6,4529.5,0.001]
[1759725525175,56.89677911,4529.6,4529.5,0.001]
[1759725526255,59.10447956,4529.6,4529.5,0.001]
[1759725526674,60.33447956,4529.6,4529.5,0.001]
[1759725526992,58.12677911,4529.6,4529.5,0.001]
[1759725527202,60.33447956,4529.6,4529.5,0.001]
[1759725527504,58.12677911,4529.6,4529.5,0.001]
[1759725527797,60.33447956,4529.6,4529.5,0.001]